Cogmind - Beta 15 @@@ ROGUE MODE // 2025.06.06 @ 00:19:35 Player: Demo Result: Destroyed by H-66 Slayer with Gauss Rifle Performance ------------- Evolutions (5) 2500 Regions Visited (24) 4800 Robots Destroyed (260) 1300 Value Destroyed (10401) 10401 Prototype IDs (255) 5100 Alien Tech Used (1) 200 Bonus (13263) 13263 TOTAL SCORE: 37564 Bonus ------- Triggered High Security 1000 High Alert Combat Kills 4395 Follower Combat Kills 2538 Entered Garrisons 200 Aligned with FarCom 300 Met Data Miner 300 Used Data Conduit 3000 Met Imprinter 300 Destroyed Z-Imprinter 1000 Triggered Deep Caves Wall 500 Acquired ECA 300 Pursued by Intercept 500 Friendly Fire -1070 Cogmind --------- Core Integrity 0/1000 Matter 255/300 Energy 265/265 System Corruption 15% Temperature Cool (0) Movement Rolling (115) Ox1 Location -5/Extension Parts ------- > --- POWER (2) -------- Improved Ion Engine > --- PROPULSION (5) --- Compact Wheel > --- UTILITY (8) ------ Small Storage Unit > --- WEAPON (3) ------- Master Tearclaws > --- INVENTORY (8) ---- GAL Module Peak State ------------ > --- POWER ------------ Hybrid Antimatter Reactor Light Particle Reactor > --- PROPULSION ------- Heavy Treads Heavy Siege Treads Biometal Medium Treads > --- UTILITY ---------- Advanced Cooling System Huge Storage Unit Improved Sensor Array Improved Signal Interpreter Experimental Targeting Computer Target Analyzer Improved Kinecellerator Weapon Cycler > --- WEAPON ----------- Heavy Linear Accelerator Enhanced Hardcell Cannon > --- INVENTORY -------- Improved Medium Treads Advanced Heat Sink High-capacity Storage Unit Advanced Energy Well Matter Compressor Advanced Terrain Scanner Encrypted Comm Array Matter Filter Energy Filter Quantum Capacitor Hardened Medium Armor Plating Hardened Medium Armor Plating Experimental Thermal Shield Shock Absorption System EM Shield Dynamic Insulation System Neutron Cannon Gauss Rifle Battle Cannon Tesla Bomb Launcher Impact Mace Master Tearclaws GAL Module [Rating: 119] Favorites ----------- Power Hybrid Antimatter Reactor Engine Cooled Deuterium Engine Power Core Light Nuclear Core Reactor Hybrid Antimatter Reactor Propulsion Improved Carbon-fiber Leg Treads Light Treads Leg Improved Carbon-fiber Leg Wheel Wheel Hover Unit Zionite Glidesys I Flight Unit Flying Fortress v7 Utility High-capacity Storage Unit Device Matter Filter Storage High-capacity Storage Unit Processor Experimental Targeting Computer Protection Hardened Medium Armor Plating Weapon Heavy Linear Accelerator Energy Gun Precision Beam Rifle Energy Cannon Neutron Cannon Ballistic Gun Enhanced Autogun Ballistic Cannon Heavy Linear Accelerator Launcher Mini Grenade Launcher Special Weapon Improved Plasma Cutter Impact Weapon Heavy Flail Slashing Weapon Master Tearclaws Special Melee Weapon Datajack Build | -11 -10 -10 -10 -9 -8 -8 -8 -7 -7 -7 -7 -7 -6 -6 -6 -6 -6 -6 -6 -5 -5 -5 -5 -5 ------- Run | Yrd Mat Min Exi Min Mat Gar Mat Fac Low Low Zio Dee Pro Fac Was Fac Low Low Dat Pro Fac Was Fac Ext Slots Evolved 10 | . . . . . 4 . . 2 . . . . . 2 . . . . . . 2 . . . Power 1 | . . . . . . . . . . . . . . . . . . . . . 1 . . . Propulsion 2 | . . . . . 2 . . . . . . . . . . . . . . . . . . . Utility 6 | . . . . . 1 . . 2 . . . . . 2 . . . . . . 1 . . . Weapon 1 | . . . . . 1 . . . . . . . . . . . . . . . . . . . Parts Attached 234 | 8 12 2 4 . 19 15 15 19 . 6 11 36 . 11 21 9 2 5 3 2 2 4 14 14 Power 23 | 1 1 2 . . 1 1 2 3 . . . 5 . . 2 . . . . . 1 1 1 2 Engine 8 | 1 1 1 . . . . 1 3 . . . . . . . . . . . . . . . 1 Core 5 | . . 1 . . 1 1 1 . . . . . . . . . . . . . 1 . . . Reactor 10 | . . . . . . . . . . . . 5 . . 2 . . . . . . 1 1 1 Propulsion 61 | 3 4 . 2 . 8 4 4 4 . . 1 8 . 2 6 . . 2 1 1 . 1 3 7 Treads 25 | 1 1 . . . 3 4 3 . . . . . . . 4 . . . . 1 . 1 3 4 Leg 6 | . . . . . . . . 4 . . . 1 . . . . . . 1 . . . . . Wheel 14 | 2 3 . 2 . 4 . . . . . . . . . . . . 2 . . . . . 1 Hover 14 | . . . . . 1 . . . . . . 7 . 2 2 . . . . . . . . 2 Flight 2 | . . . . . . . 1 . . . 1 . . . . . . . . . . . . . Utility 93 | 2 4 . . . 7 5 6 6 . 5 7 14 . 6 10 6 1 1 1 . 1 1 8 2 Device 42 | 1 . . . . 3 3 2 2 . . 5 7 . 3 5 3 1 . 1 . . 1 5 . Storage 15 | 1 3 . . . . . . . . 5 . 1 . 1 . 2 . . . . . . . 2 Processor 11 | . 1 . . . 1 . . 1 . . . . . 1 3 1 . 1 . . 1 . 1 . Hackware . | . . . . . . . . . . . . . . . . . . . . . . . . . Protection 25 | . . . . . 3 2 4 3 . . 2 6 . 1 2 . . . . . . . 2 . Artifact . | . . . . . . . . . . . . . . . . . . . . . . . . . Weapon 57 | 2 3 . 2 . 3 5 3 6 . 1 3 9 . 3 3 3 1 2 1 1 . 1 2 3 Energy Gun 29 | 2 3 . 1 . 2 1 2 3 . . 1 8 . 2 1 . . 2 . . . . . 1 Energy Cannon 3 | . . . . . . . . . . . . . . . . . . . 1 1 . . 1 . Ballistic Gun 6 | . . . . . 1 1 . 3 . . . . . . . 1 . . . . . . . . Ballistic Cannon 4 | . . . . . . 2 . . . . . . . . 1 . . . . . . 1 . . Launcher 5 | . . . . . . 1 1 . . . . 1 . . 1 . . . . . . . 1 . Special Weapon 1 | . . . . . . . . . . . . . . . . . . . . . . . . 1 Impact Weapon 3 | . . . . . . . . . . . 1 . . . . 2 . . . . . . . . Slashing Weapon 2 | . . . . . . . . . . . 1 . . . . . . . . . . . . 1 Piercing Weapon . | . . . . . . . . . . . . . . . . . . . . . . . . . Special Melee Weapon 4 | . . . 1 . . . . . . 1 . . . 1 . . 1 . . . . . . . Unidentified Prototypes 27 | . . . . . 2 . 1 5 . . 2 12 . . 2 2 1 . . . . . . . Corrupted Parts 4 | . . . . . . . . . . . 3 . . . . . . . . . . . 1 . System Corruption 21 | . . . . . . . . . . . 18 . . . . . . . . . . . 3 . Parts Lost 86 | . 5 1 . . 5 1 8 . . 2 . 13 . 15 . 1 . . . . . 2 24 9 Power 5 | . 1 1 . . 1 . . . . . . . . . . . . . . . . . 2 . Propulsion 30 | . 2 . . . 3 . 4 . . . . 3 . 6 . . . . . . . . 6 6 Utility 29 | . . . . . . . 3 . . 2 . 5 . 6 . 1 . . . . . 1 11 . Weapon 22 | . 2 . . . 1 1 1 . . . . 5 . 3 . . . . . . . 1 5 3 Highest Loss Streak 16 | . 3 1 . . 5 1 4 . . 1 . 5 . 11 . 1 . . . . . 2 16 6 To Critical Strikes 1 | . . . . . . . . . . . . . . . . . . . . . . . . 1 Average Backups 14 | 2 13 19 13 10 9 9 10 10 10 13 16 15 17 15 2 14 22 21 21 21 21 20 21 2 Power . | . 1 1 . . . . . . 1 1 1 1 2 1 . . 1 1 1 1 . . . . Propulsion 1 | 1 4 3 3 3 1 2 2 2 2 2 1 1 2 1 . 1 2 1 . . 1 . 1 . Utility 6 | . 4 11 7 5 3 2 3 3 2 3 6 6 6 5 . 5 13 13 14 13 13 12 13 . Weapon 3 | . . 1 1 1 3 3 3 3 2 2 3 3 4 3 . 4 4 4 4 5 5 4 3 . Tool/Special . | . . . . . . . . . . . . . . . . . . . . . . . . . Unused Backups 80 | . 6 . 8 . 4 2 1 3 1 3 5 11 . 5 1 7 2 . 4 . . 1 16 . Power 8 | . 1 . 2 . . . . 1 . . 2 1 . . . . . . . . . . 1 . Propulsion 11 | . 2 . . . . . 1 1 . 1 . 3 . . 1 . . . . . . . 2 . Utility 45 | . 3 . 5 . 4 2 . . . 1 2 5 . 3 . 5 2 . 4 . . 1 8 . Weapon 14 | . . . . . . . . 1 1 1 1 2 . 1 . 2 . . . . . . 5 . Tool/Special 2 | . . . 1 . . . . . . . . . . 1 . . . . . . . . . . Average Slot Usage (%) 87 | . 96 100 81 100 96 99 89 96 100 94 95 91 85 81 69 78 76 80 76 81 78 81 78 16 Engine 2 | . 11 9 . . . . 2 6 7 7 7 1 . . 2 . . . . . 2 . . 1 Core 2 | . . 4 14 14 8 9 5 . . . . . . . . . . . . . 1 3 . . Reactor 3 | . . . . . . . . . . . . 5 7 5 2 6 6 6 6 6 5 6 9 . Treads 10 | . 9 . . . 8 33 31 . . . . . . . 7 13 12 12 12 15 16 16 15 4 Leg 6 | . . . . . . . . 28 30 30 30 7 . . . . . . 1 2 . . . . Wheel 3 | . 18 28 28 28 25 2 . . . . . . . . . . . 5 4 . . . . 1 Hover 4 | . . . . . . . . . . . . 22 30 24 7 . . . . . . . . 1 Device 12 | . 10 . . . 2 9 6 16 23 9 10 17 15 21 18 17 12 11 12 18 16 20 19 . Storage 8 | . 14 14 14 14 9 9 9 7 7 15 15 7 7 11 . 5 6 6 6 6 5 4 4 1 Processor 6 | . 3 14 14 14 7 . . 4 . . . . . . 11 14 18 18 17 12 12 16 13 . Protection 6 | . . . . . 8 8 9 7 7 7 10 10 7 4 4 6 6 6 6 6 5 . 3 . Energy Gun 8 | . 27 28 3 28 17 13 6 8 7 6 12 8 7 7 7 5 5 5 1 . . . . 2 Ballistic Gun 3 | . . . . . 7 2 8 10 15 15 6 6 1 . . . . . . . . . . . Ballistic Cannon 2 | . . . . . . 3 7 . . . . . . . . 6 6 6 2 6 5 9 5 . Launcher 1 | . . . . . . 7 1 1 . . . 1 7 2 . . . . . . . . 1 . Peak Build Rating 119 | 7 12 14 24 24 42 42 58 62 61 59 61 93 83 98 97 97 94 93 101 101 108 116 119 29 Average Rating 64 | 5 8 12 16 24 37 39 39 58 58 53 52 75 79 84 77 91 91 92 87 99 104 109 107 11 On Entrance 56 | . 7 12 14 24 24 42 40 48 61 59 53 56 81 79 3 97 94 91 93 101 99 108 116 3 Naked Turns 80 | . . . . . . . . . . . . . . 35 3 . . . . . . . 9 33 Heaviest Build 161 | 12 49 51 51 51 64 65 67 75 69 69 94 72 66 70 62 140 140 136 141 145 159 161 157 28 Greatest Support 175 | 10 20 20 20 20 36 80 83 72 72 72 81 72 67 67 140 140 140 140 140 168 168 175 175 23 Greatest Overweight (x) 4 | 1 4 2 2 2 3 1 1 1 . . 1 1 . 1 1 . . . 1 1 . . . 1 Average Overweight (x) . | . 1 2 2 2 1 . . . . . . . . . . . . . . . . . . . Largest Inventory Capacity 25 | 8 20 20 20 20 20 20 20 20 20 20 20 20 20 20 5 25 25 25 25 25 25 25 25 10 Average Capacity 19 | 7 15 20 20 20 20 20 20 20 20 20 20 20 20 19 5 20 25 25 25 25 25 24 24 6 Most Carried 25 | 7 20 20 20 20 20 20 20 20 20 20 20 20 20 20 5 25 25 25 25 25 25 25 25 5 Average Carried 19 | 2 13 19 19 20 19 19 19 19 18 19 19 19 20 18 4 17 24 24 23 24 24 23 24 4 Final Capacity 25 | 8 20 20 20 20 20 20 20 20 20 20 20 20 20 5 5 25 25 25 25 25 25 25 5 8 Final Carried 25 | 7 19 20 20 20 20 20 20 20 20 20 20 20 20 5 5 25 25 25 25 25 24 25 5 1 Class Distribution -------------------- 35% | Tank 16% | Mutant 14% | Scavenger-Skirmisher 7% | Scavenger-Mutant 7% | Scavenger-Tank 3% | Skirmisher Dominant Class ---------------- Mutant | -10/Materials Mutant | -10/Mines Mutant | -10/Exiles Mutant | -9/Mines Scavenger-Skirmisher | -8/Materials Scavenger-Skirmisher | -8/Garrison Scavenger-Skirmisher | -8/Materials Tank | -7/Factory Tank | -7/Lower Caves Tank | -7/Lower Caves Tank | -7/Zion Scavenger-Tank | -7/Deep Caves Scavenger-Mutant | -6/Proximity Caves Scavenger-Mutant | -6/Factory Gladiator | -6/Waste Tank | -6/Factory Tank | -6/Lower Caves Tank | -6/Lower Caves Commander-Gladiator | -6/Data Miner Tank | -5/Proximity Caves Tank | -5/Factory Scavenger-Gunner | -5/Waste Tank | -5/Factory Mutant | -5/Extension Resources | -11 -10 -10 -10 -9 -8 -8 -8 -7 -7 -7 -7 -7 -6 -6 -6 -6 -6 -6 -6 -5 -5 -5 -5 -5 ----------- Run | Yrd Mat Min Exi Min Mat Gar Mat Fac Low Low Zio Dee Pro Fac Was Fac Low Low Dat Pro Fac Was Fac Ext Matter Collected 8758 | 311 194 101 . . 547 1117 1002 410 32 394 223 816 135 84 587 327 518 189 113 118 . 532 857 151 Remotely . | . . . . . . . . . . . . . . . . . . . . . . . . . Salvage Created 10628 | 270 575 100 . . 1060 1004 1767 877 40 373 . 452 24 246 165 338 203 115 . 77 . 619 2101 222 Parts 499 | 19 31 4 . . 57 63 102 37 . 9 . 22 . 20 4 21 4 . . 6 . . 94 6 Haulers Intercepted 8 | . 1 . . . 2 . 2 1 . . . . . . . . . . . . . . 2 . Recyclers Shooed 7 | . . . . . 3 . . 2 . . . . . 1 . . . . . . . . . 1 Parts Field Recycled 6 | . . . . . . . . 6 . . . . . . . . . . . . . . . . Retrieved Matter 83 | . . . . . . . . 83 . . . . . . . . . . . . . . . . Parts Self-Destructed 32 | . . . . . . . . . 2 11 2 . . . . . 9 2 . 6 . . . . Prevented 3 | . . . . . . . . . 3 . . . . . . . . . . . . . . . Kills | -11 -10 -10 -10 -9 -8 -8 -8 -7 -7 -7 -7 -7 -6 -6 -6 -6 -6 -6 -6 -5 -5 -5 -5 -5 ------- Run | Yrd Mat Min Exi Min Mat Gar Mat Fac Low Low Zio Dee Pro Fac Was Fac Low Low Dat Pro Fac Was Fac Ext Combat Hostiles Destroyed 190 | . 11 2 . . 13 34 37 12 1 3 . 8 . 8 . 5 5 1 . 5 . 3 40 2 Melee 3 | . . . . . . . . . . . . . . . . . 1 . . . . . . 2 Guns 78 | . 9 2 . . 13 12 16 12 . 3 . 8 . 1 . 1 1 . . . . . . . Cannons 32 | . . . . . . 2 5 . . . . . . . . 4 3 1 . 1 . 3 13 . AOE 71 | . 2 . . . . 20 16 . . . . . . 7 . . . . . 4 . . 22 . Classes Destroyed 25 | 3 5 . . . 2 2 4 . 1 2 . 2 . . . 1 1 1 . . . 1 . . Worker 15 | 2 2 . . . 2 . 1 2 . . . . . 3 . 1 . . . . . . 2 . Builder 12 | . 1 . . . 3 . 6 . . . . . . 1 . 1 . . . . . . . . Tunneler 12 | 8 1 . . . . . . . . . . . . 1 . 1 . . . . . . 1 . Hauler 8 | . 1 . . . 2 . 2 1 . . . . . . . . . . . . . . 2 . Recycler 10 | 1 1 . . . 1 . 3 3 . . . . . . . . . . . . . . . 1 Minesweeper 1 | . . . . . . . . . . 1 . . . . . . . . . . . . . . Mechanic 4 | . . . . . . . 1 . . . . . . . . . . . . . . . 3 . Operator 1 | . . . . . . . 1 . . . . . . . . . . . . . . . . . Watcher 6 | . 1 . . . 2 . 3 . . . . . . . . . . . . . . . . . Swarmer 43 | . 4 . . . . 10 5 4 . . . . . 7 . . 2 . . 4 . . 7 . Grunt 79 | . 7 2 . . 9 13 23 8 . 2 . . . . . . 1 . . . . . 12 2 Brawler 6 | . . . . . . . 1 . . 1 . . . . . 1 . . . . . . 3 . Duelist 3 | . . . . . . 1 2 . . . . . . . . . . . . . . . . . Protector 1 | . . . . . . . 1 . . . . . . . . . . . . . . . . . Researcher 1 | . . . . . . . . . . . . . . . . . 1 . . . . . . . Sentry 16 | . . . . . 3 4 4 . . . . . . 1 . 1 . . . . . . 3 . Demolisher 1 | . . . . . . . . . . . . . . . . 1 . . . . . . . . Hunter 13 | . . . . . 1 3 1 . . . . . . . . 2 . . . . . . 6 . Programmer 10 | . . . . . . 3 . . . . . . . . . . . . . . . . 7 . Behemoth 2 | . . . . . . . . . . . . . . . . . . 1 . 1 . . . . Compactor 3 | . . . . . . . . . . . . . . . . . . . . . . 3 . . Tracker 1 | . . . . . . . . . . . . . . . . . . . . . . . 1 . Combat Programmer 1 | . . . . . . . . . . . . . . . . . . . . . . . 1 . Z-Light 5 | . . . . . . . . . . . . 5 . . . . . . . . . . . . Decomposer 5 | . . . . . . . . . 1 1 . . 1 . . . 2 . . . . . . . Samaritan 3 | . . . . . . . . . . 3 . . . . . . . . . . . . . . Master Thief 1 | . . . . . . . . . 1 . . . . . . . . . . . . . . . Assembled 3 | . . . . . . . . . . . . 3 . . . . . . . . . . . . Surgeon 1 | . . . . . . . . . . . . . . . . 1 . . . . . . . . Thug 2 | . . . . . . . . . . . . . . . . 1 . 1 . . . . . . Butcher 2 | . . . . . . . . . . . . . . . . . 2 . . . . . . . Best Kill Streak 16 | 5 7 2 . . 7 16 9 5 1 3 . 2 . 8 . 2 2 1 . 4 . 2 12 1 Combat Bots Only 16 | . 5 2 . . 6 16 7 5 1 3 . 2 . 7 . 2 2 1 . 4 . 2 10 1 Max Kills in Single Turn 7 | 1 2 1 . . 2 5 5 2 1 1 . 1 1 3 . 1 1 1 . 4 . 1 7 1 Gunslinging 1 | . . . . . . . . 1 . . . . . . . . . . . . . . . . Exploded 5 | . 2 . . . . 5 4 . . . . . . 3 . . . . . 4 . . 5 . Melee 1 | . . . . . . . . . . . . . . . . . 1 . . . . . . 1 Uniques/NPCs Destroyed . | . . . . . . . . . . . . . . . . . . . . . . . . . Combat | -11 -10 -10 -10 -9 -8 -8 -8 -7 -7 -7 -7 -7 -6 -6 -6 -6 -6 -6 -6 -5 -5 -5 -5 -5 -------- Run | Yrd Mat Min Exi Min Mat Gar Mat Fac Low Low Zio Dee Pro Fac Was Fac Low Low Dat Pro Fac Was Fac Ext Hostile Shots Fired 1105 | . 69 5 . . 83 63 133 34 5 41 . 102 4 115 . 96 9 19 . . . 3 275 49 Missed 340 | . 22 1 . . 14 19 39 9 2 13 . 48 2 50 . 40 3 5 . . . . 63 10 Hits 765 | . 47 4 . . 69 44 94 25 3 28 . 54 2 65 . 56 6 14 . . . 3 212 39 Melee 29 | . . . . . . . 1 . 3 7 . 2 . 5 . . . . . . . 3 8 . Projectile 736 | . 47 4 . . 69 44 93 25 . 21 . 52 2 60 . 56 6 14 . . . . 204 39 AOE 4 | . 1 . . . . . . . . . . . . . . 2 . . . . . . 1 . Critical Strikes 28 | . . . . . . 3 6 1 . 1 . . . . . 1 . . . . . 2 12 2 Part Disruptions 2 | . . . . . . . . . . . . . . 1 . . . . . . . . 1 . Actively Blocked 1 | . . . . . . . . . . . . . . . . . . . . . . . 1 . Damage Taken 14138 | . 659 58 . . 1101 692 1543 448 13 322 . 1682 41 1047 . 620 110 234 . 26 . 126 4577 839 Core 2227 | . 199 . . . 150 52 120 14 5 17 . 299 . 320 . 11 . 22 . . . . 720 298 Absorbed by Shields . | . . . . . . . . . . . . . . . . . . . . . . . . . Reduced by Siege Mode 103 | . . . . . . . . . . . . . . . . . 12 . . . . . 91 . Redirected to Shielding 68 | . . . . . . . . . . . . 68 . . . . . . . . . . . . Ignored by Resistances 290 | . . . . . . . 133 . . . . . . . . . . . . . . . 157 . Regen/Repaired (Parts) 2082 | . 17 . . . . . . . . . . . . . 453 349 66 121 . 97 . 366 613 . Core Remaining (%) 54 | 100 . . . 20 . . 41 . . . . . 52 . . . . . . 58 . . . . Volleys Fired 813 | 45 50 6 . . 67 175 100 32 3 30 . 44 1 68 6 24 20 13 . 4 . 19 90 16 Largest 3 | 2 2 2 . . 3 3 3 3 3 3 . 3 1 2 2 2 2 2 . 2 . 2 2 1 Hottest 160 | 90 95 90 . . 144 153 129 152 114 114 . 159 60 120 81 151 151 151 . 160 . 160 160 69 Shots Fired 1382 | 56 79 11 . 1 150 246 207 87 9 89 . 107 1 75 8 40 25 24 . 5 . 31 117 14 Gun 999 | 56 79 11 . 1 150 158 127 87 9 89 . 103 1 64 8 20 16 11 . . . . . 9 Cannon 258 | . . . . . . 22 68 . . . . . . . . 20 9 13 . 4 . 27 95 . Launcher 120 | . . . . . . 66 12 . . . . 4 . 11 . . . . . 1 . 4 22 . Special 5 | . . . . . . . . . . . . . . . . . . . . . . . . 5 Kinetic 525 | . . . . . 64 38 150 35 6 60 . 40 . . . 20 9 13 . 3 . 23 64 . Thermal 577 | 56 45 . . . 51 142 22 18 3 29 . 47 1 58 8 20 16 11 . 1 . 4 31 14 Explosive 98 | . . . . . . 66 12 . . . . 4 . 11 . . . . . 1 . 4 . . Electromagnetic 170 | . 34 11 . 1 35 . 23 34 . . . 10 . . . . . . . . . . 22 . Phasic 12 | . . . . . . . . . . . . 6 . 6 . . . . . . . . . . Robot Hit Streak 20 | 8 8 4 . 2 14 8 15 14 3 16 . 8 5 8 5 6 6 12 . 2 . 13 20 10 Robot Miss Streak 6 | 4 4 3 . . 5 5 6 5 2 2 . 4 . 4 1 3 1 6 . 2 . 1 3 1 Penetration Max 1 | . . . . . 1 . 1 . . . . . . . . . . . . . . . . . Secondary Targets 11 | . . 1 . . 3 1 . 2 . 2 . 2 . . . . . . . . . . . . Max Gunslinging Chain 1 | . . 1 . . 1 1 . 1 . 1 . 1 . . . . . . . . . . . . Capacitor 14 | . . . . . . . . . . . . . . . 4 . . . . . . . 10 . Shots Hit Robots 742 | 32 45 6 . 1 95 78 119 53 5 63 . 47 1 23 6 26 15 14 1 2 . 26 68 16 Core Hits 437 | 12 22 3 . . 36 57 93 30 1 21 . 20 1 20 4 11 7 4 . 5 . 6 71 13 Critical Kills 3 | . . . . . . . 1 . . 1 . . . . . . . . . . . . 1 . Critical Parts Destroyed 2 | . . . . . . . . 1 . 1 . . . . . . . . . . . . . . Critical Strikes 47 | 3 1 . . . 5 4 7 2 . 5 . . . 1 1 4 2 1 . 2 . 1 6 2 Burn 25 | 3 1 . . . 4 4 3 . . 3 . . . . 1 2 2 1 . . . . . 1 Meltdown 1 | . . . . . . . . . . . . . . . . . . . . . . . 1 . Destroy 4 | . . . . . . . 1 1 . 2 . . . . . . . . . . . . . . Blast 12 | . . . . . . . 2 . . . . . . . . 2 . . . 2 . 1 5 . Corrupt 3 | . . . . . 1 . 1 1 . . . . . . . . . . . . . . . . Sever 1 | . . . . . . . . . . . . . . . . . . . . . . . . 1 Intensify 1 | . . . . . . . . . . . . . . 1 . . . . . . . . . . Melee Attacks 9 | . . . . . . . . . . . . 1 . . . . . . 1 . . . . 7 Impact . | . . . . . . . . . . . . . . . . . . . . . . . . . Slashing 8 | . . . . . . . . . . . . . . . . . . . 1 . . . . 7 Piercing . | . . . . . . . . . . . . . . . . . . . . . . . . . Sneak Attacks 3 | . . . . . . . . . . . . 1 . . . . . . . . . . . 2 Combat Hostiles 2 | . . . . . . . . . . . . . . . . . . . . . . . . 2 Follow-up Attacks . | . . . . . . . . . . . . . . . . . . . . . . . . . Damage Inflicted 30289 | 396 847 96 . 15 1878 3181 4410 1252 88 1145 . 1145 29 1466 143 1274 617 1088 18 533 . 2878 7218 572 Guns 10837 | 396 658 96 . 15 1878 1358 1610 1068 88 1101 . 963 29 655 143 324 210 96 . . . . . 149 Cannons 9306 | . . . . . . 274 888 . . . . . . . . 908 325 936 . 244 . 2112 3619 . Explosions 9407 | . 189 . . . . 1549 1898 164 . . . 182 . 811 . . . . . 289 . 766 3559 . Melee 333 | . . . . . . . . . . . . . . . . . . . 9 . . . . 324 Ramming 335 | . . . . . . . 14 20 . 44 . . . . . 42 82 56 9 . . . 40 28 Kinetic 11911 | . . . . . 768 432 1865 478 53 714 . 288 . . . 908 325 936 . 200 . 1990 2954 . Thermal 7718 | 396 487 . . . 705 1200 409 261 35 387 . 457 29 675 143 324 210 96 . 44 . 122 1518 220 Explosive 5679 | . . . . . . 1549 1675 . . . . 182 . 593 . . . . . 289 . 766 625 . Electromagnetic 3983 | . 360 96 . 15 405 . 447 493 . . . 86 . . . . . . . . . . 2081 . Impact . | . . . . . . . . . . . . . . . . . . . . . . . . . Slashing 333 | . . . . . . . . . . . . . . . . . . . 9 . . . . 324 Piercing . | . . . . . . . . . . . . . . . . . . . . . . . . . Phasic 330 | . . . . . . . . . . . . 132 . 198 . . . . . . . . . . Highest Corruption 23 | . 1 1 1 1 . 2 2 5 5 5 23 . . 12 13 14 14 17 17 17 . . 13 15 Average Corruption 8 | . 1 1 1 1 . 1 1 5 5 5 6 . . 4 13 13 14 14 17 17 . . 7 14 Corruption Purged 2 | . . . . . . . 2 . . . . . . . . . . . . . . . . . Corruption Blocked . | . . . . . . . . . . . . . . . . . . . . . . . . . Effects 315 | . 7 1 1 4 . 7 8 13 10 28 5 . . 3 31 48 46 30 20 28 . . 6 19 Message Errors 83 | . 2 . . 1 . 3 2 5 2 9 1 . . . 10 12 15 6 8 5 . . 1 1 Matter Fused 90 | . 1 . . 2 . 3 4 5 2 12 2 . . . 9 15 10 5 4 8 . . 3 5 Heat Flow Errors 30 | . . . . . . 1 . . 1 3 . . . 2 2 2 6 1 3 5 . . 1 3 Energy Discharges 30 | . . . 1 . . . . . 3 1 2 . . . 3 3 4 3 3 3 . . . 4 Parts Fused 4 | . . . . . . . . 1 1 . . . . . . . 1 . . . . . . 1 Data Loss (minor) 43 | . 1 1 . . . . 2 2 1 2 . . . . 4 9 7 9 1 4 . . . . Data Loss (major) 13 | . . . . . . . . . . . . . . . 2 2 2 4 . 2 . . . 1 Misfires 7 | . 1 . . 1 . . . . . . . . . . . 1 1 2 . . . . 1 . Alerts 6 | . . . . . . . . . . . . . . . 1 3 . . 1 1 . . . . Misdirections 3 | . . . . . . . . . . . . . . 1 . . . . . . . . . 2 Weapon Failures 6 | . 2 . . . . . . . . 1 . . . . . 1 . . . . . . . 2 Overload Shots . | . . . . . . . . . . . . . . . . . . . . . . . . . Overflow Damage 880 | . . . . . . 63 65 . . . . 20 . 17 . 1 11 144 . 77 . 56 423 3 Projectiles 428 | . . . . . . 15 35 . . . . . . . . 1 . 139 . 77 . 8 153 . Explosions 433 | . . . . . . 48 30 . . . . 20 . 17 . . . . . . . 48 270 . Melee 19 | . . . . . . . . . . . . . . . . . 11 5 . . . . . 3 Knockbacks 25 | . . . . . . 1 9 . . . . . . . . 3 . 1 . . . . 10 1 Impact 2 | . . . . . . . . . . . . . . . . 1 . . . . . . . 1 Kinetic 21 | . . . . . . 1 8 . . . . . . . . 1 . 1 . . . . 10 . Secondary 2 | . . . . . . . 1 . . . . . . . . 1 . . . . . . . . Self-Inflicted Damage 942 | . 70 . . . . 72 200 70 . . . . . 42 . . . . . . . . 479 9 Shots 26 | . 2 . . . . 3 5 2 . . . . . 2 . . . . . . . . 12 . Rammed 43 | . . . . . . . 5 . . . . . . . . 3 9 5 1 . . . 5 15 Targets Rammed 59 | . . . . . . . 5 6 . 9 . . . . . 3 10 5 1 . . . 5 15 Kicked 15 | . . . . . . . . 6 . 9 . . . . . . . . . . . . . . Crushed 1 | . . . . . . . . . . . . . . . . . 1 . . . . . . . Highest Temperature 610 | 210 191 178 . 8 311 245 252 126 135 303 . 276 32 303 197 212 280 249 243 226 . 270 610 282 Average Temperature 78 | 75 54 91 . 6 115 52 61 43 47 82 . 68 17 99 76 37 97 88 119 66 . 109 64 141 Received Heat Transfer 3595 | . 192 33 . . 585 171 774 135 . 120 . 387 18 111 . 39 . 24 . . . . 736 270 Effects 6 | . . . . . . . . . . . . . . 1 . . 1 . . . . . 4 . Shutdowns 1 | . . . . . . . . . . . . . . . . . . . . . . . 1 . Energy Bleed 2 | . . . . . . . . . . . . . . 1 . . 1 . . . . . . . Interference 1 | . . . . . . . . . . . . . . . . . . . . . . . 1 . Matter Decay 1 | . . . . . . . . . . . . . . . . . . . . . . . 1 . Damage (major) 1 | . . . . . . . . . . . . . . . . . . . . . . . 1 . Siege Activations 4 | . . . . . . . . . . . . . . . . . 1 1 . 1 . . 1 . Total Turns 37 | . . . . . . . . . . . . . . . . . 14 6 . 2 . . 15 . Longest Duration 15 | . . . . . . . . . . . . . . . . . 14 6 . 2 . . 15 . Martial Activations . | . . . . . . . . . . . . . . . . . . . . . . . . . Shielding Activations . | . . . . . . . . . . . . . . . . . . . . . . . . . Robots Disrupted 1 | . . . . . . . . 1 . . . . . . . . . . . . . . . . Combat Hostiles 1 | . . . . . . . . 1 . . . . . . . . . . . . . . . . Robots Corrupted 7 | . . . . . . . . . . . . . . . . . 2 1 . . . . 4 . Combat Hostiles 5 | . . . . . . . . . . . . . . . . . . 1 . . . . 4 . Parts Fried 8 | . 1 . . . 3 . . . 1 . . 2 . . . . . . . . . . 1 . Impact Corruptions 6 | . . . . . . . . . . . . . . . . . 4 2 . . . . . . Robots Melted 1 | . . . . . . . . . . . . . . . . . . . . . . . 1 . Combat Hostiles 1 | . . . . . . . . . . . . . . . . . . . . . . . 1 . Parts Melted 18 | 2 1 . . . 1 1 1 1 . 1 . 3 . . 1 2 . . . . . . 2 2 Heat Transferred 13490 | 1311 1203 . . . 1628 2479 877 385 74 1073 . 647 37 742 370 666 555 222 . . . . 740 481 Parts Sabotaged 2 | . . . . . . . . . . . . . . . . . . . . . . . 2 . Parts Stolen 4 | . . . . . . . . . 1 3 . . . . . . . . . . . . . . Parts Stripped . | . . . . . . . . . . . . . . . . . . . . . . . . . Power Chain Reactions 10 | . 4 . . . . . 2 2 . . . . . . . . . . . . . . 2 . Alert | -11 -10 -10 -10 -9 -8 -8 -8 -7 -7 -7 -7 -7 -6 -6 -6 -6 -6 -6 -6 -5 -5 -5 -5 -5 ------- Run | Yrd Mat Min Exi Min Mat Gar Mat Fac Low Low Zio Dee Pro Fac Was Fac Low Low Dat Pro Fac Was Fac Ext Maximum Alert Level 5 | . 1 . . . . 5 5 4 . . . . . 1 . 2 . . . . . . 5 4 Low Security (%) 45 | 100 87 100 . 100 100 6 . . . . . . . 46 100 46 . . . . 100 100 11 . Level 1 6 | . 12 . . . . 10 . . . . . . . 53 . 1 . . . . . . . . Level 2 7 | . . . . . . 5 . . . . . . . . . 52 . . . . . . 13 . Level 3 6 | . . . . . . 6 . 52 . . . . . . . . . . . . . . 13 12 Level 4 17 | . . . . . . 22 74 47 . . . . . . . . . . . . . . 14 87 Level 5 10 | . . . . . . 48 8 . . . . . . . . . . . . . . . . . High Security 5 | . . . . . . . 16 . . . . . . . . . . . . . . . 45 . Max Security . | . . . . . . . . . . . . . . . . . . . . . . . . . Peak Influence 2651 | 15 238 104 . . 150 2323 2066 1430 . . . . . 286 68 607 . . . . 46 66 2651 1269 Initial 1269 | . . 84 . . . 90 1132 1100 . . . . . . 68 . . . . . 46 9 . 1269 Average 684 | 2 44 83 . . 69 1355 1434 1158 . . . . . 150 6 302 . . . . 37 3 1381 1181 Influence Increases 11296 | 55 456 50 . . 482 2383 1324 592 . 95 . . 15 547 . 1062 320 170 . 237 . 68 3331 109 Destroy 0b10 Robot/C 4500 | . 220 40 . . 260 780 720 240 . 60 . . . 160 . 380 140 60 . 100 . . 1280 60 Destroy 0b10 Robot/NC 425 | 55 35 . . . 50 10 90 30 . 10 . . . 25 . 15 . 5 . 10 . . 85 5 Destroy Leader 776 | . 44 10 . . 88 20 160 42 . 10 . . . 20 . 80 20 20 . 20 . . 232 10 Allied During Kill 1933 | . . . . . . 113 . . . . . . . . . 475 160 85 . 107 . . 984 9 Trap Triggered on 0b10 20 | . 20 . . . . . . . . . . . . . . . . . . . . . . . Successful Hack 126 | . . . . . 38 14 18 28 . . . . . 14 . . . . . . . . 4 10 Disable Machine 660 | . 45 . . . 15 90 75 30 . . . . . 90 . 30 . . . . . . 285 . Anti-Garrison Action 1150 | . . . . . . 800 150 200 . . . . . . . . . . . . . . . . Destroy Structure 1301 | . 17 . . . 1 511 96 7 . . . . . 73 . 82 . . . . . 68 446 . Partial Spotted 60 | . . . . . . . . . . . . . . 60 . . . . . . . . . . Lose Combat Pursuer 345 | . 75 . . . 30 45 15 15 . 15 . . 15 105 . . . . . . . . 15 15 Influence Decreases 10399 | 55 239 193 74 . 343 199 1581 1453 666 581 214 . 15 351 196 542 627 383 . 162 49 94 740 1642 Entered New Map 5158 | . . 133 74 . . 49 1191 1127 506 133 214 . . . 128 . 193 42 . . 29 17 . 1322 Time Decay 3791 | 55 189 50 . . 293 . 310 326 160 428 . . 15 201 68 342 434 321 . 142 20 57 210 170 Lost Part 730 | . 50 10 . . 50 10 80 . . 20 . . . 150 . 10 . . . . . 20 240 90 Lost Ally 570 | . . . . . . 140 . . . . . . . . . 40 . 20 . 20 . . 290 60 Purge Threat 150 | . . . . . . . . . . . . . . . . 150 . . . . . . . . Squads Dispatched 67 | . 2 . . . 7 . 14 5 . . . . . 9 . 5 . . . . . . 21 4 Investigation 18 | . 2 . . . 3 . 1 3 . . . . . 3 . 3 . . . . . . 1 2 Extermination 5 | . . . . . . . . 1 . . . . . 2 . 1 . . . . . . 1 . Reinforcement 11 | . . . . . 2 . 2 1 . . . . . 1 . 1 . . . . . . 3 1 Assault 23 | . . . . . . . 8 . . . . . . . . . . . . . . . 14 1 Garrison 8 | . . . . . 2 . 3 . . . . . . 3 . . . . . . . . . . Intercept 2 | . . . . . . . . . . . . . . . . . . . . . . . 2 . Searches Triggered . | . . . . . . . . . . . . . . . . . . . . . . . . . Construction Impeded 2 | . . . . . . . 1 . . . . . . . . . . . . . . . 1 . Haulers Reinforced 2 | . . . . . . . . 1 . . . . . . . . . . . . . . 1 . Active Scanning Responses . | . . . . . . . . . . . . . . . . . . . . . . . . . Cargo Convoy Interrupts 1 | . . . . . . . . . . . . . . . . . . . . . . . 1 . Stealth | -11 -10 -10 -10 -9 -8 -8 -8 -7 -7 -7 -7 -7 -6 -6 -6 -6 -6 -6 -6 -5 -5 -5 -5 -5 --------- Run | Yrd Mat Min Exi Min Mat Gar Mat Fac Low Low Zio Dee Pro Fac Was Fac Low Low Dat Pro Fac Was Fac Ext Distress Signals 9 | . 2 . . 1 2 . 1 1 . . . . . . . . . . . . . . 2 . Communications Jammed . | . . . . . . . . . . . . . . . . . . . . . . . . . Distress Signals . | . . . . . . . . . . . . . . . . . . . . . . . . . Times Spotted 391 | . 27 2 . 3 24 33 54 14 4 10 . 58 5 24 1 14 11 4 3 3 . 6 78 13 Peak Tracking Total 37 | . 8 2 . 5 7 11 8 3 3 5 . 37 9 8 1 3 6 1 4 2 . 2 13 5 Tactical Retreats 24 | . 2 . . . 2 1 1 1 . 1 . 7 1 6 . . . . . . . . 1 1 Traps | -11 -10 -10 -10 -9 -8 -8 -8 -7 -7 -7 -7 -7 -6 -6 -6 -6 -6 -6 -6 -5 -5 -5 -5 -5 ------- Run | Yrd Mat Min Exi Min Mat Gar Mat Fac Low Low Zio Dee Pro Fac Was Fac Low Low Dat Pro Fac Was Fac Ext Traps Triggered 12 | . . . . . . 1 . . . . . . . 7 . . . . . . 1 . 2 1 Indirectly 2 | . . . . . . . . . . . . . . . . . . . . . . . 2 . Trap Hack Attempts 13 | . . . . . . . . . . 13 . . . . . . . . . . . . . . Triggered . | . . . . . . . . . . . . . . . . . . . . . . . . . Disarmed . | . . . . . . . . . . . . . . . . . . . . . . . . . Reprogrammed 7 | . 6 . . . . . . . . 1 . . . . . . . . . . . . . . Reused 7 | . 2 . . . . . . . 1 3 . 1 . . . . . . . . . . . . Traps Extracted 10 | . . . . . . . . . 1 4 . 5 . . . . . . . . . . . . Installed 12 | . . . . . . . . . 2 4 . 6 . . . . . . . . . . . . Triggered 2 | . 2 . . . . . . . . . . . . . . . . . . . . . . . Fabricated Traps 1 | . . . . . . . . . . . 1 . . . . . . . . . . . . . Most Traps Carried 4 | . . . . . . 4 4 4 4 4 3 3 2 2 . . . . . . . . . . Machines | -11 -10 -10 -10 -9 -8 -8 -8 -7 -7 -7 -7 -7 -6 -6 -6 -6 -6 -6 -6 -5 -5 -5 -5 -5 ---------- Run | Yrd Mat Min Exi Min Mat Gar Mat Fac Low Low Zio Dee Pro Fac Was Fac Low Low Dat Pro Fac Was Fac Ext Machines Disabled 54 | . 4 . . . 1 12 6 2 . . . 1 . 6 . 2 . 1 . . . . 19 . Max in Single Turn 5 | . 1 . . . 1 1 2 1 . . . 1 . 4 . 1 . 1 . . . . 5 . Garrison Access 3 | . . . . . . . 1 1 . . . . . . . . . . . . . . 1 . Garrison Relay 5 | . . . . . . 5 . . . . . . . . . . . . . . . . . . Machines Repaired . | . . . . . . . . . . . . . . . . . . . . . . . . . Machines Dismantled . | . . . . . . . . . . . . . . . . . . . . . . . . . Machines Sabotaged . | . . . . . . . . . . . . . . . . . . . . . . . . . Overloaded Fab Kills . | . . . . . . . . . . . . . . . . . . . . . . . . . Hacking | -11 -10 -10 -10 -9 -8 -8 -8 -7 -7 -7 -7 -7 -6 -6 -6 -6 -6 -6 -6 -5 -5 -5 -5 -5 --------- Run | Yrd Mat Min Exi Min Mat Gar Mat Fac Low Low Zio Dee Pro Fac Was Fac Low Low Dat Pro Fac Was Fac Ext Machines Accessed 59 | . 6 . 2 . 8 5 3 4 . . 1 . . 12 . 5 . 1 4 . . . 4 4 Terminals 29 | . 3 . . . 4 5 2 2 . . . . . 5 . 2 . 1 . . . . 1 4 Fabricators 3 | . . . . . . . . 1 . . . . . 1 . . . . . . . . 1 . Repair Stations 5 | . 1 . . . 1 . . . . . . . . 1 . 1 . . . . . . 1 . Recycling Units 9 | . 2 . . . 1 . . . . . . . . 4 . 2 . . . . . . . . Scanalyzers 2 | . . . . . 1 . 1 . . . . . . . . . . . . . . . . . Garrison Access 4 | . . . . . 1 . . 1 . . . . . 1 . . . . . . . . 1 . Total Hacks 167 | . 15 . 2 . 29 13 9 7 . . 5 . . 25 . 13 . 1 30 . . . 8 10 Successful 90 | . 6 . 2 . 16 1 5 4 . . 5 . . 9 . 3 . 1 30 . . . 5 3 Failed 77 | . 9 . . . 13 12 4 3 . . . . . 16 . 10 . . . . . . 3 7 Catastrophic 16 | . 2 . . . 1 3 1 2 . . . . . 4 . 2 . . . . . . . 1 Database Lockouts . | . . . . . . . . . . . . . . . . . . . . . . . . . Manual 64 | . 5 . 1 . 19 1 5 3 . . 5 . . 13 . 6 . . . . . . . 6 Terminals 73 | . 9 . . . 16 13 5 3 . . . . . 9 . 6 . 1 . . . . 1 10 Fabricators 8 | . . . . . . . . 2 . . . . . 3 . . . . . . . . 3 . Repair Stations 10 | . 1 . . . 2 . . . . . . . . 2 . 3 . . . . . . 2 . Recycling Units 23 | . 5 . . . 6 . . . . . . . . 8 . 4 . . . . . . . . Scanalyzers 6 | . . . . . 2 . 4 . . . . . . . . . . . . . . . . . Garrison Access 10 | . . . . . 3 . . 2 . . . . . 3 . . . . . . . . 2 . Terminal Hacks 49 | . 2 . 2 . 2 1 . 1 . . 5 . . . . 1 . 1 30 . . . 1 3 Record 13 | . . . 1 . . . . . . . . . . . . . . 1 11 . . . . . Part Schematic 17 | . . . . . 1 . . . . . 5 . . . . . . . 11 . . . . . Robot Schematic 5 | . . . . . . . . . . . . . . . . . . . 5 . . . . . Prototype ID Bank 3 | . . . . . . . . . . . . . . . . . . . 3 . . . . . Open Door 1 | . . . . . . . . . . . . . . . . . . . . . . . 1 . Branch Access Points 1 | . . . . . . . . 1 . . . . . . . . . . . . . . . . Alert Level 1 | . . . . . . . . . . . . . . . . . . . . . . . . 1 Unreport Threat 1 | . . . . . . . . . . . . . . . . 1 . . . . . . . . Locate Traps 2 | . 1 . . . . . . . . . . . . . . . . . . . . . . 1 Reprogram Traps 1 | . 1 . . . . . . . . . . . . . . . . . . . . . . . Registered Components 1 | . . . . . 1 . . . . . . . . . . . . . . . . . . . Zone Layout 1 | . . . . . . . . . . . . . . . . . . . . . . . . 1 Patrol Navigation 1 | . . . . . . 1 . . . . . . . . . . . . . . . . . . Proto ID Catalog 1 | . . . 1 . . . . . . . . . . . . . . . . . . . . . Fabricator Hacks 4 | . . . . . . . . 2 . . . . . 1 . . . . . . . . 1 . Load Schematic 3 | . . . . . . . . 1 . . . . . 1 . . . . . . . . 1 . Build 1 | . . . . . . . . 1 . . . . . . . . . . . . . . . . Repair Station Hacks 4 | . . . . . 2 . . . . . . . . . . . . . . . . . 2 . Scan Component 2 | . . . . . 1 . . . . . . . . . . . . . . . . . 1 . Repair 2 | . . . . . 1 . . . . . . . . . . . . . . . . . 1 . Recycling Unit Hacks 11 | . 3 . . . 1 . . . . . . . . 5 . 2 . . . . . . . . Process 2 | . . . . . . . . . . . . . . 2 . . . . . . . . . . Retrieve Matter 1 | . . . . . . . . . . . . . . 1 . . . . . . . . . . Retrieve Components 8 | . 3 . . . 1 . . . . . . . . 2 . 2 . . . . . . . . Scanalyzer 5 | . . . . . 1 . 4 . . . . . . . . . . . . . . . . . Insert Component 3 | . . . . . 1 . 2 . . . . . . . . . . . . . . . . . Analyze 2 | . . . . . . . 2 . . . . . . . . . . . . . . . . . Garrison Access Hacks 2 | . . . . . 1 . . . . . . . . . . . . . . . . . 1 . Unlock Access 1 | . . . . . 1 . . . . . . . . . . . . . . . . . . . Seal Access 1 | . . . . . . . . . . . . . . . . . . . . . . . 1 . Unauthorized Hacks 15 | . 1 . . . 9 . 1 1 . . . . . 3 . . . . . . . . . . Terminals 6 | . . . . . 4 . 1 . . . . . . 1 . . . . . . . . . . Botnet 5 | . . . . . 3 . 1 . . . . . . 1 . . . . . . . . . . Disrupt 1 | . . . . . 1 . . . . . . . . . . . . . . . . . . . Fabricators . | . . . . . . . . . . . . . . . . . . . . . . . . . Repair Stations 2 | . 1 . . . . . . . . . . . . 1 . . . . . . . . . . Patch 2 | . 1 . . . . . . . . . . . . 1 . . . . . . . . . . Recycling Units 4 | . . . . . 3 . . . . . . . . 1 . . . . . . . . . . Monitor 1 | . . . . . 1 . . . . . . . . . . . . . . . . . . . Recyclers 2 | . . . . . 1 . . . . . . . . 1 . . . . . . . . . . Mask 1 | . . . . . 1 . . . . . . . . . . . . . . . . . . . Scanalyzers . | . . . . . . . . . . . . . . . . . . . . . . . . . Garrison Access 3 | . . . . . 2 . . 1 . . . . . . . . . . . . . . . . Reprogram 1 | . . . . . 1 . . . . . . . . . . . . . . . . . . . Intercept 1 | . . . . . 1 . . . . . . . . . . . . . . . . . . . Jam 1 | . . . . . . . . 1 . . . . . . . . . . . . . . . . Data Cores Recovered 1 | . . . . . . . 1 . . . . . . . . . . . . . . . . . Used . | . . . . . . . . . . . . . . . . . . . . . . . . . Hacking Detections 47 | . 4 . . . 8 5 3 4 . . . . . 12 . 4 . 1 . . . . 2 4 Full Trace Events 19 | . 3 . . . 2 3 2 2 . . . . . 2 . 2 . . . . . . 1 2 Feedback Events 2 | . 1 . . . . . . . . . . . . . . 1 . . . . . . . . Corruption 2 | . 1 . . . . . . . . . . . . . . 1 . . . . . . . . Feedback Blocked . | . . . . . . . . . . . . . . . . . . . . . . . . . Robot Schematics Acquired 8 | . . . . . . . . . . . 3 . . . . . . . 5 . . . . . Robots Built . | . . . . . . . . . . . . . . . . . . . . . . . . . Authchips . | . . . . . . . . . . . . . . . . . . . . . . . . . Time . | . . . . . . . . . . . . . . . . . . . . . . . . . Total Robot Build Rating . | . . . . . . . . . . . . . . . . . . . . . . . . . Part Schematics Acquired 33 | . . . . . 1 . 1 . . . 20 . . . . . . . 11 . . . . . Parts Built 2 | . . . . . . . . 2 . . . . . . . . . . . . . . . . Authchips . | . . . . . . . . . . . . . . . . . . . . . . . . . Time 31 | . . . . . . . . 31 . . . . . . . . . . . . . . . . Total Part Build Rating 4 | . . . . . . . . 4 . . . . . . . . . . . . . . . . Parts Repaired 2 | . . . . . 1 . . . . . . . . . . . . . . . . . 1 . Time 112 | . . . . . 44 . . . . . . . . . . . . . . . . . 68 . Parts Recycled . | . . . . . . . . . . . . . . . . . . . . . . . . . Recycled Matter 17 | . . . . . . . . . . . . . . 17 . . . . . . . . . . Retrieved Matter 3 | . . . . . . . . . . . . . . 3 . . . . . . . . . . Retrieved Components 30 | . 12 . . . 9 . . . . . . . . 3 . 6 . . . . . . . . Parts Scanalyzed 3 | . . . . . 1 . 2 . . . . . . . . . . . . . . . . . Part Schematics Acquired 1 | . . . . . . . 1 . . . . . . . . . . . . . . . . . Parts Damaged 1 | . . . . . 1 . . . . . . . . . . . . . . . . . . . Bothacking | -11 -10 -10 -10 -9 -8 -8 -8 -7 -7 -7 -7 -7 -6 -6 -6 -6 -6 -6 -6 -5 -5 -5 -5 -5 ------------ Run | Yrd Mat Min Exi Min Mat Gar Mat Fac Low Low Zio Dee Pro Fac Was Fac Low Low Dat Pro Fac Was Fac Ext Used RIF Installer . | . . . . . . . . . . . . . . . . . . . . . . . . . Robots Hacked 1 | . . . . . . . . . . . . 1 . . . . . . . . . . . . Non-combat . | . . . . . . . . . . . . . . . . . . . . . . . . . Combat 1 | . . . . . . . . . . . . 1 . . . . . . . . . . . . Robot Hacks Applied 1 | . . . . . . . . . . . . 1 . . . . . . . . . . . . parse_system 1 | . . . . . . . . . . . . 1 . . . . . . . . . . . . Relay Couplers Released 24 | . . . . . . 21 2 . . . . . . . . . . . . . . . 1 . Machine Destruction 24 | . . . . . . 21 2 . . . . . . . . . . . . . . . 1 . Fabnet Peak Effective % . | . . . . . . . . . . . . . . . . . . . . . . . . . Robots Rewired 11 | . . . . . . 3 . . . . . . . . . . 2 3 . . . . . 3 Allies Hacked 4 | . . . . . . . . . . . . . . . . . . . . . . . 4 . Hacks Repelled . | . . . . . . . . . . . . . . . . . . . . . . . . . Allies | -11 -10 -10 -10 -9 -8 -8 -8 -7 -7 -7 -7 -7 -6 -6 -6 -6 -6 -6 -6 -5 -5 -5 -5 -5 -------- Run | Yrd Mat Min Exi Min Mat Gar Mat Fac Low Low Zio Dee Pro Fac Was Fac Low Low Dat Pro Fac Was Fac Ext Total Allies 53 | . . . . . 2 5 . . . . . . . . 20 . 2 3 . . . 18 . 3 Largest Group 25 | . . . . . 2 5 . . . . . . . . 20 20 15 16 16 8 7 25 25 3 Highest-Rated Group 956 | . . . . . 32 105 . . . . . . . . 831 829 649 641 636 348 298 956 956 82 Highest-Rated Ally 50 | . . . . . 16 31 . . . . . . . . 50 50 50 50 50 50 46 50 50 31 Initial Warlord ECA Mod 128 | . . . . . . . 9 8 8 8 8 8 7 7 7 7 7 7 7 6 6 6 6 6 Total Orders 16 | . . . . . . . . . . . . . . . . . . . 16 . . . . . STAY 11 | . . . . . . . . . . . . . . . . . . . 11 . . . . . FOLLOW 5 | . . . . . . . . . . . . . . . . . . . 5 . . . . . Ally Attacks 466 | . . . . . 5 22 . . . . . . . . 10 75 30 26 66 11 . 59 151 11 Total Damage 16529 | . . . . . 35 342 . . . . . . . . 191 2720 1267 717 1348 285 . 1534 7845 245 Kills 85 | . . . . . . 5 . . . . . . . . 1 15 9 3 4 2 . 3 42 1 Allies Corrupted 3 | . . . . . . . . . . . . . . . . 2 . . . . . . 1 . Allies Melted . | . . . . . . . . . . . . . . . . . . . . . . . . . Intel | -11 -10 -10 -10 -9 -8 -8 -8 -7 -7 -7 -7 -7 -6 -6 -6 -6 -6 -6 -6 -5 -5 -5 -5 -5 ------- Run | Yrd Mat Min Exi Min Mat Gar Mat Fac Low Low Zio Dee Pro Fac Was Fac Low Low Dat Pro Fac Was Fac Ext Active Infowar (turns) 4911 | . 580 . . . . . . . . . . . . . . 135 1051 722 468 390 49 833 683 . Sensors 4168 | . . . . . . . . . . . . . . . . . 1051 722 468 390 49 833 655 . Terrain 168 | . . . . . . . . . . . . . . . . 135 . . . . . . 33 . Seismic 580 | . 580 . . . . . . . . . . . . . . . . . . . . . . . Robot Analysis Total 151 | . . . . . . . . . . . . . . . . . . . 151 . . . . . Derelict Logs Recovered 6 | . . . . . . . . . 3 1 1 . . . . . 1 . . . . . . . Drone Launches . | . . . . . . . . . . . . . . . . . . . . . . . . . Drone Recoveries . | . . . . . . . . . . . . . . . . . . . . . . . . . Exploration | -11 -10 -10 -10 -9 -8 -8 -8 -7 -7 -7 -7 -7 -6 -6 -6 -6 -6 -6 -6 -5 -5 -5 -5 -5 ------------- Run | Yrd Mat Min Exi Min Mat Gar Mat Fac Low Low Zio Dee Pro Fac Was Fac Low Low Dat Pro Fac Was Fac Ext Turns Passed 20291 | 248 847 104 351 346 811 2324 835 733 322 1054 1675 2637 231 616 862 1129 1060 722 526 558 49 833 1077 341 Spaces Moved 14042 | 146 607 75 298 264 425 1079 300 403 253 701 1328 2883 453 1052 625 560 546 335 267 262 28 430 464 258 Core 254 | 24 . . . . . . . . . . . . . 67 60 . . . . . . . 33 70 Treads 4412 | . . . . . . 1014 250 . . . . . . . 284 560 546 335 267 262 28 430 431 5 Legs 3030 | . . . . . . . . 382 253 701 1328 366 . . . . . . . . . . . . Wheels 1938 | 122 607 75 298 264 425 65 . . . . . . . . . . . . . . . . . 82 Hover 4337 | . . . . . . . . . . . . 2517 453 985 281 . . . . . . . . 101 Flight 71 | . . . . . . . 50 21 . . . . . . . . . . . . . . . . Fastest Speed 24 | 50 95 110 110 110 95 101 50 50 120 120 120 24 24 24 50 170 170 170 170 166 166 161 50 40 Average Speed 109 | 86 105 110 110 110 107 158 147 121 120 120 120 58 45 30 111 170 170 170 175 197 166 165 152 72 Slowest Speed 255 | 95 140 110 110 110 145 243 243 190 120 120 190 190 48 118 170 170 170 170 255 255 166 166 161 160 Overloaded Moves . | . . . . . . . . . . . . . . . . . . . . . . . . . Propulsion Burnouts . | . . . . . . . . . . . . . . . . . . . . . . . . . Robots Hopped 1 | . . . . . . . 1 . . . . . . . . . . . . . . . . . Potential Cave-ins 3 | . . . . . . . . . . . . . . . . . . . . . . . 3 . Cave-ins Triggered . | . . . . . . . . . . . . . . . . . . . . . . . . . Exploration Rate (%) 52 | 5 83 21 51 61 34 96 39 12 53 72 86 90 74 29 97 14 70 45 77 57 1 97 17 36 Regions Visited 24 Branch Regions 13 Pre-discovered Areas 34 | . . . 1 . . . . . 1 1 . . . . . . 1 . 30 . . . . . Known Exits Taken 10 | . . . . . 1 . . 1 1 . 1 . . . . 1 1 1 1 1 . . 1 . Unknown Exits Taken 9 | 1 1 1 1 1 . . 1 . . 1 . 1 1 . . . . . . . . . . . Scrap Searched 15 | . . 1 . . . . . . 1 1 4 . 3 . . . 3 1 . 1 . . . . Spaces Dug 240 | . . . . . . 152 8 . . . . . . 14 . . 3 . . 26 . . 37 . Terrain Destroyed 1018 | . 16 . . . 2 561 108 3 . 1 . 16 . 73 . 11 5 2 . 27 . 72 121 . Melee . | . . . . . . . . . . . . . . . . . . . . . . . . . Projectile 148 | . . . . . 2 12 28 . . 1 . 16 . 21 . 11 5 2 . 1 . 2 47 . AOE 870 | . 16 . . . . 549 80 3 . . . . . 52 . . . . . 26 . 70 74 . Terrain Rammed . | . . . . . . . . . . . . . . . . . . . . . . . . . Walls Destroyed . | . . . . . . . . . . . . . . . . . . . . . . . . . Machines Disabled . | . . . . . . . . . . . . . . . . . . . . . . . . . Actions | -11 -10 -10 -10 -9 -8 -8 -8 -7 -7 -7 -7 -7 -6 -6 -6 -6 -6 -6 -6 -5 -5 -5 -5 -5 --------- Run | Yrd Mat Min Exi Min Mat Gar Mat Fac Low Low Zio Dee Pro Fac Was Fac Low Low Dat Pro Fac Was Fac Ext Total 17771 | 208 735 86 328 319 656 1472 505 591 266 856 1406 3758 475 1279 788 690 644 458 331 295 31 514 711 369 Wait 1761 | . 31 1 . 56 111 134 43 86 6 70 30 643 20 109 101 41 43 55 35 21 . 25 83 17 Move 14017 | 145 606 74 297 263 424 1078 297 402 252 700 1327 2882 452 1051 624 559 545 334 266 261 28 429 463 258 Hop 1 | . . . . . . . 1 . . . . . . . . . . . . . . . . . Pick Up 232 | 8 22 2 6 . 11 9 7 14 3 13 8 31 . 9 7 29 2 1 6 2 . 23 18 1 Fast Attach 161 | 8 2 . 2 . 9 3 10 11 . 2 11 44 . 4 16 5 4 4 4 1 1 6 3 11 Attach 107 | . 4 1 3 . 7 2 5 12 . 1 2 13 . 15 6 5 . 2 1 . . 3 18 7 Detach 44 | . . . . . 3 . 4 1 . 1 3 7 . 6 2 5 . 1 1 . . 2 5 3 Swap 134 | . 9 1 2 . 10 18 16 4 . 8 5 20 1 7 5 5 1 1 2 3 1 3 12 . Drop 290 | 2 11 1 18 . 14 19 17 23 . 5 20 67 1 9 21 14 5 5 14 3 1 4 14 2 Fire 813 | 45 50 6 . . 67 175 100 32 3 30 . 44 1 68 6 24 20 13 . 4 . 19 90 16 Melee 9 | . . . . . . . . . . . . 1 . . . . . . 1 . . . . 7 Ram 7 | . . . . . . . . . . . . . . . . . . . . . . . 1 6 Kick 15 | . . . . . . . . 6 . 9 . . . . . . . . . . . . . . Crush 37 | . . . . . . . 5 . . . . . . . . 3 10 5 1 . . . 4 9 Escape Stasis 1 | . . . . . . . . . . . . . . 1 . . . . . . . . . . Rewire 115 | . . . . . . 34 . . . . . . . . . . 14 37 . . . . . 30 Trap 25 | . . . . . . . . . 2 17 . 6 . . . . . . . . . . . . Miscellaneous 2 | . . . . . . . . . . . . . . . . . . . . . . . . 2 Route ------- -11/Scrapyard -10/Materials (discovered 3 exits: [*Mat x2] / [*Min]) -10/Mines -10/Exiles -9/Mines -8/Materials (discovered 2 exits: *Fac / Gar) -8/Garrison (discovered 3 exits: *Mat x3) -8/Materials -7/Factory (discovered 2 exits: *Low x2) -7/Lower Caves -7/Lower Caves (discovered 2 exits: *Fac / *Zio) -7/Zion (discovered 2 exits: *Dee / [*Pro]) -7/Deep Caves -6/Proximity Caves -6/Factory -6/Waste -6/Factory -6/Lower Caves -6/Lower Caves -6/Data Miner -5/Proximity Caves -5/Factory -5/Waste -5/Factory (discovered 2 exits: *Ext x2) -5/Extension History --------- Turn | Location | Event 4 | -11/Scrapyard | Discovered new exit (range 16) 249 | -11/Scrapyard | Entered Materials 306 | -10/Materials | Discovered new exit (range 9) 313 | -10/Materials | Build established: Mutant 411 | -10/Materials | Discovered new exit (range 9) 699 | -10/Materials | Discovered new exit (range 11) 932 | -10/Materials | Core integrity fell below 50% 991 | -10/Materials | Lost 3 parts (1p1n1w) 1096 | -10/Materials | Entered Mines 1175 | -10/Mines | Deemed a non-threat by the Exiles lab entrance 1176 | -10/Mines | Discovered new exit (range 5) 1183 | -10/Mines | Found DCF Scrap (12 items) 1200 | -10/Mines | Entered Exiles 1228 | -10/Exiles | Met 8R-AWN 1248 | -10/Exiles | Met EX-HEX 1284 | -10/Exiles | Met EX-BIN 1297 | -10/Exiles | Aligned with FarCom system 1298 | -10/Exiles | Given EX-Vault access code 1325 | -10/Exiles | Opened EX-Vault 1339 | -10/Exiles | Found Flying Fortress v7 1342 | -10/Exiles | Found AWS/Autocannon 1353 | -10/Exiles | Found Army-in-a-Box 1384 | -10/Exiles | Warned to stay clear of 0b10 Research branches 1419 | -10/Exiles | Met EX-DEC 1425 | -10/Exiles | Learned location of Zion (-7) 1537 | -10/Exiles | Discovered new exit (range 14) 1551 | -10/Exiles | Stole three prototypes: Flying Fortress v7, Army-in-a-Box, AWS/Autocannon 1551 | -10/Exiles | Entered Mines 1649 | -9/Mines | Excavation squad dispatched 1649 | -9/Mines | A large section of the Mines collapsed 1888 | -9/Mines | Discovered new exit (range 8) 1897 | -9/Mines | Entered Materials 1897 | -8/Materials | Evolved 4 slots: Propulsion x2, Utility x1, Weapon x1 2275 | -8/Materials | Build established: Scavenger-Skirmisher 2341 | -8/Materials | Discovered new exit (range 10) 2467 | -8/Materials | Repaired Broken Mni. Grenade Launcher 2477 | -8/Materials | Garrison activated, responded to threat 2598 | -8/Materials | Lost 5 parts (1p3n1w) 2642 | -8/Materials | Identified exit to Garrison 2690 | -8/Materials | Garrison activated, responded to threat 2708 | -8/Materials | Entered Garrison 2708 | -8/Garrison | Accompanied by 2 allies 2832 | -8/Garrison | Triggered checkpoint 2938 | -8/Garrison | Build established: Skirmisher 2942 | -8/Garrison | Garrison Relay disabled 2942 | -8/Garrison | Triggered checkpoint 3127 | -8/Garrison | Rescued a captive Derelict 3129 | -8/Garrison | Rescued a captive Derelict 3224 | -8/Garrison | Triggered checkpoint 3248 | -8/Garrison | Triggered checkpoint 3265 | -8/Garrison | Lost 3 allies 3273 | -8/Garrison | Destroyed 16 combat bots 3393 | -8/Garrison | Discovered new exit (range 15) 3396 | -8/Garrison | Build established: Scavenger-Skirmisher 3617 | -8/Garrison | Garrison Relay disabled 3673 | -8/Garrison | Triggered checkpoint 3762 | -8/Garrison | Garrison Relay disabled 3771 | -8/Garrison | Garrison Relay disabled 3772 | -8/Garrison | Triggered checkpoint 3958 | -8/Garrison | Discovered new exit (range 13) 4458 | -8/Garrison | Triggered checkpoint 4562 | -8/Garrison | Garrison Relay disabled 4709 | -8/Garrison | Discovered new exit (range 14) 5032 | -8/Garrison | Entered Materials 5432 | -8/Materials | First assault squad dispatched 5459 | -8/Materials | Garrison activated, responded to threat 5522 | -8/Materials | Core integrity fell below 50% 5548 | -8/Materials | Destroyed 7 combat bots 5728 | -8/Materials | High security lockdown imminent 5808 | -8/Materials | High security lockdown engaged 5822 | -8/Materials | Lost 4 parts (2n2u) 5864 | -8/Materials | Discovered new exit (range 6) 5867 | -8/Materials | Entered Factory 5867 | -7/Factory | Evolved 2 slots: Utility x2 5869 | -7/Factory | FarCom data flow suspended 6241 | -7/Factory | Identified exit to Lower Caves 6273 | -7/Factory | Build established: Tank 6385 | -7/Factory | Fabricated Plasma Cutter (x2) 6600 | -7/Factory | Entered Lower Caves 6600 | -7/Lower Caves | Spotted PU-D00(f) 6600 | -7/Lower Caves | Spotted BU-UDD(f) 6602 | -7/Lower Caves | Encountered a Master Thief 6602 | -7/Lower Caves | Encountered a Master Thief 6603 | -7/Lower Caves | AWS/Autocannon stolen by Master Thief 6609 | -7/Lower Caves | Destroyed PU-D00(f) 6611 | -7/Lower Caves | Met a Warlord Commander 6612 | -7/Lower Caves | Learned location of Warlord (-5) 6613 | -7/Lower Caves | Warlord Commander delivered Encrypted Comm Array 6620 | -7/Lower Caves | Found Encrypted Comm Array 6636 | -7/Lower Caves | Learned Factory stockpile data 6854 | -7/Lower Caves | Identified exit to Lower Caves 6922 | -7/Lower Caves | Entered another Lower Caves area 7123 | -7/Lower Caves | Spotted B-75 Beast 7165 | -7/Lower Caves | Discovered new exit (range 8) 7518 | -7/Lower Caves | Spotted 0C-YX6(f) 7518 | -7/Lower Caves | Spotted N0-7FX(f) 7519 | -7/Lower Caves | Encountered a Master Thief 7519 | -7/Lower Caves | Encountered a Master Thief 7519 | -7/Lower Caves | Spotted LG-IFK(f) 7519 | -7/Lower Caves | Spotted 8I-6VA(f) 7520 | -7/Lower Caves | Encountered a Master Thief 7520 | -7/Lower Caves | Encountered a Master Thief 7521 | -7/Lower Caves | Spotted 2W-YSJ(f) 7521 | -7/Lower Caves | Flying Fortress v7 stolen by Master Thief 7522 | -7/Lower Caves | Encountered a Master Thief 7527 | -7/Lower Caves | Army-in-a-Box stolen by Master Thief 7536 | -7/Lower Caves | Mak. Leg stolen by Master Thief 7811 | -7/Lower Caves | Discovered new exit (range 9) 7976 | -7/Lower Caves | Entered Zion 8052 | -7/Zion | Found GAL Module 8128 | -7/Zion | Discovered new exit (range 9) 8135 | -7/Zion | Given the Hacking Drone Bay 8185 | -7/Zion | System corruption reached 10% 8199 | -7/Zion | System corruption cleaned by Quarantine Array 8267 | -7/Zion | Found Prototype Device 8267 | -7/Zion | Identified Hacking Drone Bay 8290 | -7/Zion | Build established: Mutant 8364 | -7/Zion | Identified exit to Deep Caves 8630 | -7/Zion | Acquired unknown access codes intercepted by a Zionite 8654 | -7/Zion | Build established: Tank 8816 | -7/Zion | Met Imprinter 8987 | -7/Zion | Learned Factory repair station intel 9248 | -7/Zion | Found Prototype Device 9248 | -7/Zion | Identified Bomb Factory No. 2 9626 | -7/Zion | Opened final containment barrier to the Deep Caves 9646 | -7/Zion | Saw the warning signs outside the Deep Caves entrance 9651 | -7/Zion | Entered Deep Caves 9653 | -7/Deep Caves | Met 5H-AD0 9770 | -7/Deep Caves | Build established: Derelict-Tank 9870 | -7/Deep Caves | Z-Facility disabled 10004 | -7/Deep Caves | Attacked by Z-Imprinter 10161 | -7/Deep Caves | Thanked by 5H-AD0 10250 | -7/Deep Caves | Found Prototype Device 10250 | -7/Deep Caves | Identified Zio. Metafield Generator 10294 | -7/Deep Caves | Found Zio. Weapon Casing 10298 | -7/Deep Caves | Found Zio. Weapon Casing 10523 | -7/Deep Caves | Build established: Scavenger-Tank 10653 | -7/Deep Caves | Discovered new exit (range 6) 10708 | -7/Deep Caves | Spotted AG-13386 10728 | -7/Deep Caves | Spotted AG-27233 10846 | -7/Deep Caves | Build established: Scavenger-Mutant 11489 | -7/Deep Caves | Lost 5 parts (1n1u3w) 11531 | -7/Deep Caves | Build established: Scavenger-Tank 11657 | -7/Deep Caves | Lost 4 parts (2n1u1w) 11783 | -7/Deep Caves | Found Zio. Weapon Casing 11889 | -7/Deep Caves | Build established: Scavenger-Mutant 11982 | -7/Deep Caves | Found Prototype Protection 11982 | -7/Deep Caves | Identified Zio. Heavy Carapace 12207 | -7/Deep Caves | Triggered Deep Caves wall 12207 | -7/Deep Caves | Spotted AS-76604 12288 | -7/Deep Caves | Entered Proximity Caves 12517 | -6/Proximity Caves | Attracted the attention of an 0b10 outpost 12517 | -6/Proximity Caves | Discovered new exit (range 9) 12519 | -6/Proximity Caves | Entered Factory 12519 | -6/Factory | Evolved 2 slots: Utility x2 12521 | -6/Factory | Loaded intel: 6 repair station locations 12731 | -6/Factory | Garrison activated, responded to threat 12783 | -6/Factory | Destroyed 7 combat bots 12974 | -6/Factory | Assembled infested ambush trap array 13101 | -6/Factory | System corruption reached 10% 13131 | -6/Factory | Lost 11 parts (6n4u1w) 13135 | -6/Factory | Manually triggered Chute Trap 13135 | -6/Factory | Sucked down chute 13135 | -6/Factory | Entered Waste 13136 | -6/Waste | Joined by Warlord forces that had cleared the area 13140 | -6/Waste | Found Quantum Capacitor 13248 | -6/Waste | Found Prototype Processor 13248 | -6/Waste | Identified Exp. Targeting Computer 13281 | -6/Waste | Found Prototype Device 13281 | -6/Waste | Identified Exp. Focal Shield 13369 | -6/Waste | Build established: Mutant 13615 | -6/Waste | A Compactor rumbled back to life 13619 | -6/Waste | Allies destroyed C-40 Crusher 13872 | -6/Waste | Discovered new exit (range 13) 13997 | -6/Waste | Entered Factory 13997 | -6/Factory | Accompanied by 20 allies 14239 | -6/Factory | Build established: Tank 14552 | -6/Factory | P-60 Hacker assimilated allied HY-8SG(b) 14788 | -6/Factory | Discovered new exit (range 15) 14879 | -6/Factory | Identified exit to Lower Caves 15126 | -6/Factory | Entered Lower Caves 15126 | -6/Lower Caves | Accompanied by 13 allies 15140 | -6/Lower Caves | Attacked by a faux Warlord 15535 | -6/Lower Caves | Found Alien Artifact 15535 | -6/Lower Caves | Identified Core Expander 15535 | -6/Lower Caves | Installed Core Expander, added new Propulsion slot 15794 | -6/Lower Caves | Learned location of Extension (-5) 15971 | -6/Lower Caves | Encountered a Warlord checkpoint 16073 | -6/Lower Caves | Discovered new exit (range 6) 16080 | -6/Lower Caves | Identified exit to Lower Caves 16186 | -6/Lower Caves | Entered another Lower Caves area 16186 | -6/Lower Caves | Accompanied by 15 allies 16211 | -6/Lower Caves | Spotted B-75 Beast 16221 | -6/Lower Caves | Destroyed B-75 Beast 16443 | -6/Lower Caves | Attracted the attention of an 0b10 checkpoint 16752 | -6/Lower Caves | Discovered new exit (range 9) 16769 | -6/Lower Caves | Identified exit to Data Miner 16795 | -6/Lower Caves | Attacked by a delusional Derelict stockpiling Unaware 16908 | -6/Lower Caves | Entered Data Miner 16908 | -6/Data Miner | Accompanied by 16 allies 16910 | -6/Data Miner | Discovered new exit (range 6) 16918 | -6/Data Miner | Identified exit to Proximity Caves 16960 | -6/Data Miner | Met Data Miner 17003 | -6/Data Miner | Learned location of Section 7 (-2) 17003 | -6/Data Miner | Acquired the access code to Warlord's prototype stash 17025 | -6/Data Miner | Received God Mode back door access code from Data Miner 17181 | -6/Data Miner | Interfaced with the Data Conduit 17242 | -6/Data Miner | Lost 8 allies 17290 | -6/Data Miner | Found Exp. Thermal Shield 17434 | -6/Data Miner | Entered Proximity Caves 17434 | -5/Proximity Caves | Accompanied by 8 allies 17713 | -5/Proximity Caves | Spotted B-75 Beast 17720 | -5/Proximity Caves | Destroyed B-75 Beast 17919 | -5/Proximity Caves | Discovered new exit (range 7) 17929 | -5/Proximity Caves | Identified exit to Factory 17992 | -5/Proximity Caves | Entered Factory 17992 | -5/Factory | Accompanied by 7 allies 17992 | -5/Factory | Evolved 2 slots: Power x1, Utility x1 17993 | -5/Factory | Identified exit to Extension 17994 | -5/Factory | Loaded intel: 263 machine locations 18041 | -5/Factory | Sucked down chute 18041 | -5/Factory | Entered Waste 18064 | -5/Waste | Spotted C-40 Crusher 18065 | -5/Waste | Spotted C-40 Crusher 18073 | -5/Waste | Destroyed C-40 Crusher 18080 | -5/Waste | Crushed by Compactor (0 parts destroyed, 1 dropped) 18083 | -5/Waste | Crushed by Compactor (1 part destroyed, 1 dropped) 18086 | -5/Waste | Crushed by Compactor (1 part destroyed, 1 dropped) 18087 | -5/Waste | Destroyed C-40 Crusher 18119 | -5/Waste | Spotted C-40 Crusher 18126 | -5/Waste | Allies destroyed C-40 Crusher 18149 | -5/Waste | Spotted C-40 Crusher 18161 | -5/Waste | Allies destroyed C-40 Crusher 18196 | -5/Waste | 7 allies followed down the chute 18256 | -5/Waste | Spotted C-40 Crusher 18260 | -5/Waste | Destroyed C-40 Crusher 18285 | -5/Waste | Spotted C-40 Crusher 18296 | -5/Waste | Allies destroyed C-40 Crusher 18423 | -5/Waste | Warlord forces began an assault 18429 | -5/Waste | Build established: Scavenger-Gunner 18821 | -5/Waste | Discovered new exit (range 13) 18849 | -5/Waste | Identified exit to Factory 18874 | -5/Waste | Entered Factory 18874 | -5/Factory | Accompanied by 25 allies 18875 | -5/Factory | Loaded intel: 300 machine locations 18977 | -5/Factory | Repaired Hvy. Linear Accelerator 19096 | -5/Factory | Found Tesla Bomb Launcher 19127 | -5/Factory | Spotted B-75 Beast 19139 | -5/Factory | Allies destroyed B-75 Beast 19170 | -5/Factory | Lost 7 allies 19318 | -5/Factory | Discovered exit to Extension (range 6) 19425 | -5/Factory | P-70 Sage assimilated allied BI-YT2(g) 19460 | -5/Factory | High security lockdown imminent 19481 | -5/Factory | Destroyed 10 combat bots 19508 | -5/Factory | Build established: Tank 19516 | -5/Factory | Cargo convoy interrupted 19540 | -5/Factory | High security lockdown engaged 19569 | -5/Factory | Lost 8 allies 19740 | -5/Factory | Discovered exit to Extension (range 9) 19776 | -5/Factory | Intercept squad dispatched 19787 | -5/Factory | Spotted Tracker 19809 | -5/Factory | Spotted Combat Programmer 19813 | -5/Factory | Destroyed Combat Programmer 19823 | -5/Factory | Destroyed Tracker 19857 | -5/Factory | Lost 4 parts (1n3u) 19897 | -5/Factory | System corruption reached 10% 19930 | -5/Factory | Core integrity fell below 50% 19937 | -5/Factory | Destroyed 10 combat bots 19951 | -5/Factory | Entered Extension 19952 | -5/Extension | Loaded intel: 33 machine locations 19969 | -5/Extension | Lost 16 parts (1p5n6u4w) 20062 | -5/Extension | Core integrity fell below 20% 20122 | -5/Extension | Lost 6 parts (4n2w) 20157 | -5/Extension | Build established: Mutant 20251 | -5/Extension | First assault squad dispatched 20264 | -5/Extension | Lost 3 allies 20292 | -5/Extension | Destroyed by H-66 Slayer with Gauss Rifle Last Messages --------------- 20262_ Penetrated by Slug. 20262_ Slug penetrates Wall. 20279_ System corrupted: Matter fused (-10). 20280_ Connecting with Terminal... >>Traps(Locate) Found 7 traps in 2 arrays: 6x Stasis Trap 1x Stasis Trap Map updated. 20280_ ALERT: Suspicious activity at Terminal E016. Dispatching Investigation squad. 20285_ Penetrated by Slug. 20288_ Slug penetrates O-24 Administrator. 20288_ Critical hit (Destroy). 20288_ Imp. Treads destroyed. 20291_ Penetrated by Slug. 20291_ Hvy. Laser destroyed. 20292_ Penetrated by Slug. [Achievement: I Was Wrong!] [Achievement: Collector] Map ----- +----------------------------------------------------+ | | | | | | | | | | | | | | | | | | | ?????????????????????????????????????????????????? | | ?????????????????????????????????????????????????? | | ?#######?????????????????????????????????????????? | | ## #?????????????????########????????????????? | | T" ########?????????? #????????????????? | | "" ?????????? #????????????????? | | ####?????????????? #????????????????? | | ## #??###############^ ^^^^^#????????????????? | | ?## ###?# #??????"?????????? | | ??# T#?# #?????T??????????? | | ??# ""#?# #######??????????? | | ??# ###?# ??????????? | | ??# #???# ?????????? | | ??# #???# ?????????? | | ??# #???# ????????? | | ??# #???# h o ????????? | | ??# #???# ghg @ ????????? | | ??# #???# #####T#### ????????? | | ### ##### #######??# ????????? | | ^ ?????????? | | ####################################### ?????????? | | ?????????????????????????????????????????????????? | | ?????????????????????????????????????????????????? | | ?????????????????????????????????????????????????? | | ?????????????????????????????????????????????????? | | ?????????????????????????????????????????????????? | | ?????????????????????????????????????????????????? | | ?????????????????????????????????????????????????? | | ?????????????????????????????????????????????????? | | ?????????????????????????????????????????????????? | | ?????????????????????????????????????????????????? | | ?????????????????????????????????????????????????? | | ?????????????????????????????????????????""?""???? | | ??????????????????????????????????????????"?"????? | | ?????????????????????????????????????????????????? | | ?????????????????????????????????????????????????? | | ?????????????????????????????????????????????????? | | ?????????????????????????????????????????????????? | | ?????????????????????????????????????????????????? | | ?????????????????????????????????????????????????? | | ?????????????????????????????????????????????????? | +----------------------------------------------------+ Best States ------------- Heat Dissipation 71 Energy Generation 31 Energy Capacity 1315 Matter Stores 300 Matter Capacity 300 Sight Range 16 Robot Scan Range 15 Terrain Scan Range 20 Terrain Scan Density 210 Additional Mass Support 9 EM Shielding 2 Armor Coverage 1200 Resistance: TH 10 Resistance: EM 25 Propulsion Shielding 66 Weapon Shielding 100 Weapon Cycling 15 Phase Shifting 5 Evasion (%) 74 Targeting Accuracy 12 Melee Accuracy 8 Target Analysis 5 Core Analysis 6 Recoil Reduction 5 Matter Filtering 30 Kinecelleration 40 Trap Extractor Capacity 4 Item Schematics ----------------- Plasma Cutter | -8/Materials | Hacked Trap Extractor | -8/Materials | Scanalyzed Falx | -7/Zion | Archive Remote Datajack | -7/Zion | Archive Shock Absorption System | -7/Zion | Archive Fission Core | -7/Zion | Archive Point Defense System | -7/Zion | Archive Adv. Terrain Scan Processor | -7/Zion | Archive Imp. System Restoration Module | -7/Zion | Archive Imp. Medium Armor Plating | -7/Zion | Archive Hpw. Shock Rifle | -7/Zion | Archive Imp. Shield Generator | -7/Zion | Archive Magnetic Acceleration Cannon | -7/Zion | Archive Gauss Cannon | -7/Zion | Archive Imp. Actuator Array | -7/Zion | Archive Adv. Assault Cannon | -7/Zion | Archive Lrn. Proton Cannon | -7/Zion | Archive Flamer | -7/Zion | Free Hvy. Riot Gun | -7/Zion | Free Barrage Gun | -7/Zion | Free Enh. Flamer | -7/Zion | Free Bore Cannon | -7/Zion | Free Combat Drone Bay | -6/Data Miner | Free Lgt. Regenerative Plating | -6/Data Miner | Free Cld. Gravmag System | -6/Data Miner | Free Prc. Matter Filter | -6/Data Miner | Free Neutron Cannon | -6/Data Miner | Free Field Propulsion Array | -6/Data Miner | Free Adv. Cryofiber Web | -6/Data Miner | Free Adv. Datajack | -6/Data Miner | Free Adv. Medium Treads | -6/Data Miner | Free Particle Reactor | -6/Data Miner | Free Biometal Medium Treads | -6/Data Miner | Free Robot Schematics ------------------ Y-54 Guardian | -7/Zion | Archive A-02 Transporter | -7/Zion | Archive O-24 Administrator | -7/Zion | Archive G-50 Soldier | -6/Data Miner | Free S-27 Virus | -6/Data Miner | Free B-48 Gladiator | -6/Data Miner | Free A-15 Conveyor | -6/Data Miner | Free X-77 Beamer | -6/Data Miner | Free Fabricated ------------ Plasma Cutter | x2 | -7/Factory Repaired ---------- Mni. Grenade Launcher | 99% | -8/Materials | Broken Hvy. Linear Accelerator | 50% | -5/Factory Alien Tech Used ----------------- Core Expander Achievements -------------- Collector I Was Wrong! Challenges ------------ None Game ------ Seed TripodSpikedPick Manual? 0 Play Time 03:49:38 Cumulative 235.0 hours Start 2025.06.05 @ 20:21:55 End 2025.06.06 @ 00:19:35 Sessions 1 Manual Loads 0 Difficulty Rogue Special Mode None Game No. 234 Rogue 234 Adventurer 0 Explorer 0 Win Type - Total 1 Types 1/0/0/0/0/0/0/0/0/0 Lore% 75 Gallery% 75 Achievement% 67 Wizard Run 0 Options --------- Layout 1 ASCII 0 Keyboard 0 Movement Numpad Keybinds 0 Fullscreen 1 Font 24/Smallcaps Map View 50x35 Zoom Use 0% Tactical HUD 1 Map Filters NONE Filters NONE Steam 1 RUN: 3cf4a52d-df92-44e3-9fbc-1ef6fa4a1521